Cogmind - Beta 10.1 @@@ ROGUE MODE // 2020.10.18 @ 08:50:37 Player: Vahnn Result: Destroyed by G-34 Mercenary with Small Laser Performance ------------- Evolutions (1) 500 Regions Visited (2) 400 Robots Destroyed (40) 200 Value Destroyed (1019) 1019 Prototype IDs (0) 0 Alien Tech Used (0) 0 Bonus (0) 0 TOTAL SCORE: 2119 Bonus ------- None Cogmind --------- Core Integrity 0/400 Matter 300/300 Energy 100/100 System Corruption 0% Temperature Cool (6) Movement Core (50) Location -9/Materials Parts ------- > --- POWER (2) -------- (None) > --- PROPULSION (3) --- (None) > --- UTILITY (2) ------ (None) > --- WEAPON (2) ------- (None) > --- INVENTORY (4) ---- Aluminum Leg Peak State ------------ > --- POWER ------------ Improved Ion Engine Improved Ion Engine > --- PROPULSION ------- Aluminum Leg Aluminum Leg Aluminum Leg > --- UTILITY ---------- Weight Redist. System > --- WEAPON ----------- Autogun Autogun > --- INVENTORY -------- Beam Cannon [Rating: 13] Favorites ----------- Power Improved Ion Engine Engine Improved Ion Engine Propulsion Light Treads Treads Light Treads Leg Aluminum Leg Flight Unit VTOL Module Utility Medium Storage Unit Device Weight Redist. System Storage Medium Storage Unit Protection Light Armor Plating Weapon Grenade Launcher Energy Gun Beam Rifle Energy Cannon Beam Cannon Ballistic Gun Light Assault Rifle Launcher Grenade Launcher Build | -11 -10 -9 ------- Run | Scr Mat Mat Slots Evolved 2 | . . 2 Power 1 | . . 1 Propulsion 1 | . . 1 Utility . | . . . Weapon . | . . . Parts Attached 40 | 6 14 20 Power 8 | 1 1 6 Engine 8 | 1 1 6 Core . | . . . Reactor . | . . . Propulsion 14 | 2 5 7 Treads 4 | 2 . 2 Leg 6 | . 2 4 Wheel . | . . . Hover . | . . . Flight 4 | . 3 1 Utility 9 | 1 6 2 Device 3 | . 3 . Storage 4 | 1 3 . Processor . | . . . Hackware . | . . . Protection 2 | . . 2 Artifact . | . . . Weapon 9 | 2 2 5 Energy Gun 4 | 1 1 2 Energy Cannon 1 | . . 1 Ballistic Gun 3 | 1 . 2 Ballistic Cannon . | . . . Launcher 1 | . 1 . Special Weapon . | . . . Impact Weapon . | . . . Slashing Weapon . | . . . Piercing Weapon . | . . . Special Melee Weapon . | . . . Unidentified Prototypes . | . . . Parts Lost 25 | . 7 18 Power 6 | . 2 4 Propulsion 8 | . 1 7 Utility 4 | . 1 3 Weapon 7 | . 3 4 Highest Loss Streak 8 | . 3 8 Average Slot Usage (%) 73 | . 73 73 Engine 10 | . 6 15 Treads 8 | . 7 8 Leg 7 | . 6 9 Flight 7 | . 8 7 Device 6 | . 7 5 Storage 8 | . 16 . Protection 3 | . . 8 Energy Gun 6 | . 5 8 Energy Cannon 1 | . . 3 Ballistic Gun 5 | . 6 4 Launcher 5 | . 7 2 Naked Turns 10 | . . 10 Heaviest Build 26 | 12 22 26 Greatest Support 40 | 40 40 40 Greatest Overweight (x) 3 | . 3 2 Average Overweight (x) . | . . . Largest Inventory Capacity 12 | 6 12 4 Average Capacity 6 | 5 8 4 Most Carried 5 | 4 5 4 Average Carried 1 | 1 2 1 Final Capacity 6 | 6 4 4 Final Carried 3 | 2 3 1 Class Distribution -------------------- 70% | Mutant 29% | Scavenger-Mutant Dominant Class ---------------- Mutant | -10/Materials Scavenger-Mutant | -9/Materials Resources | -11 -10 -9 ----------- Run | Scr Mat Mat Matter Collected 928 | 191 170 567 Remotely . | . . . Salvage Created 1192 | 24 471 697 Parts 91 | 2 37 52 Haulers Intercepted 1 | . . 1 Recyclers Shooed . | . . . Parts Field Recycled . | . . . Retrieved Matter . | . . . Parts Self-Destructed . | . . . Prevented . | . . . Kills | -11 -10 -9 ------- Run | Scr Mat Mat Combat Hostiles Destroyed 30 | . 13 17 Guns 22 | . 9 13 Cannons 3 | . . 3 AOE 5 | . 4 1 Classes Destroyed 9 | 1 5 3 Worker 4 | . 1 3 Builder 1 | . 1 . Tunneler 1 | 1 . . Hauler 1 | . . 1 Watcher 3 | . 1 2 Swarmer 8 | . 3 5 Grunt 17 | . 10 7 Brawler 1 | . . 1 Sentry 4 | . . 4 Best Kill Streak 6 | 1 4 6 Combat Bots Only 4 | . 3 4 Max Kills in Single Turn 2 | 1 2 2 Gunslinging . | . . . Exploded 2 | . 2 1 Melee . | . . . Uniques/NPCs Destroyed . | . . . Combat | -11 -10 -9 -------- Run | Scr Mat Mat Damage Taken 2668 | . 947 1721 Core 593 | . 184 409 Absorbed by Shields . | . . . Core Remaining (%) 63 | 100 26 . Volleys Fired 150 | 2 67 81 Largest 2 | 2 2 2 Hottest 116 | 70 70 116 Shots Fired 230 | 3 97 130 Gun 184 | 3 85 96 Cannon 26 | . . 26 Launcher 20 | . 12 8 Special . | . . . Kinetic 93 | 2 51 40 Thermal 117 | 1 34 82 Explosive 20 | . 12 8 Electromagnetic . | . . . Robot Hit Streak 13 | 2 13 9 Robot Miss Streak 7 | . 5 7 Penetration Max . | . . . Secondary Targets 3 | . 2 1 Max Gunslinging Chain 1 | . 1 1 Shots Hit Robots 134 | 2 61 71 Core Hits 71 | 1 33 37 Critical Hits . | . . . Critical Kills . | . . . Critical Parts Destroyed . | . . . Melee Attacks . | . . . Impact . | . . . Slashing . | . . . Piercing . | . . . Sneak Attacks . | . . . Combat Hostiles . | . . . Follow-up Attacks . | . . . Damage Inflicted 2405 | 19 951 1435 Guns 1444 | 19 555 870 Cannons 264 | . . 264 Explosions 694 | . 393 301 Melee . | . . . Ramming 3 | . 3 . Kinetic 750 | 6 263 481 Thermal 958 | 13 292 653 Explosive 694 | . 393 301 Electromagnetic . | . . . Impact . | . . . Slashing . | . . . Piercing . | . . . Highest Corruption . | . . . Average Corruption . | . . . Corruption Purged . | . . . Overload Shots . | . . . Overflow Damage 52 | . 15 37 Projectiles 1 | . . 1 Explosions 51 | . 15 36 Melee . | . . . Knockbacks . | . . . Impact . | . . . Kinetic . | . . . Secondary . | . . . Self-Inflicted Damage 144 | . 81 63 Shots 6 | . 3 3 Rammed 1 | . 1 . Targets Rammed 2 | . 2 . Kicked 1 | . 1 . Crushed . | . . . Highest Temperature 528 | 30 232 528 Average Temperature 156 | 18 70 187 Received Heat Transfer 960 | . 411 549 Effects 12 | . . 12 Shutdowns 5 | . . 5 Energy Bleed 3 | . . 3 Interference 1 | . . 1 Matter Decay 2 | . . 2 Short Circuit 1 | . . 1 Siege Activations . | . . . Robots Corrupted . | . . . Combat Hostiles . | . . . Parts Fried . | . . . Impact Corruptions . | . . . Robots Melted . | . . . Combat Hostiles . | . . . Parts Melted 2 | . . 2 Heat Transferred 2395 | 37 804 1554 Parts Sabotaged . | . . . Parts Stolen . | . . . Parts Stripped . | . . . Power Chain Reactions . | . . . Missiles Intercepted . | . . . Alert | -11 -10 -9 ------- Run | Scr Mat Mat Peak Influence 351 | 5 250 351 Initial 77 | . 3 77 Average 168 | 1 149 217 Maximum Alert Level 1 | . 1 1 Low Security (%) 61 | 100 81 31 Level 1 38 | . 18 68 Level 2 . | . . . Level 3 . | . . . Level 4 . | . . . Level 5 . | . . . High Security . | . . . Max Security . | . . . Squads Dispatched 5 | . 2 3 Investigation 1 | . 1 . Extermination . | . . . Reinforcement 4 | . 1 3 Assault . | . . . Garrison . | . . . Intercept . | . . . Construction Impeded 1 | . . 1 Haulers Reinforced . | . . . Stealth | -11 -10 -9 --------- Run | Scr Mat Mat Distress Signals 3 | . 1 2 Communications Jammed . | . . . Distress Signals . | . . . Times Spotted 54 | . 25 29 Peak Tracking Total 5 | . 4 5 Tactical Retreats 4 | . 1 3 Traps | -11 -10 -9 ------- Run | Scr Mat Mat Traps Triggered 2 | . 2 . Indirectly . | . . . Trap Hack Attempts . | . . . Triggered . | . . . Disarmed 3 | . 3 . Reprogrammed . | . . . Reused . | . . . Traps Extracted . | . . . Installed . | . . . Triggered . | . . . Machines | -11 -10 -9 ---------- Run | Scr Mat Mat Machines Disabled 4 | . 3 1 Max in Single Turn 1 | . 1 1 Machines Sabotaged . | . . . Garrisons Compromised . | . . . Overloaded Fab Kills . | . . . Fab Network Shutdowns . | . . . Hacking | -11 -10 -9 --------- Run | Scr Mat Mat Machines Accessed 6 | . 3 3 Terminals 5 | . 3 2 Fabricators . | . . . Repair Stations . | . . . Recycling Units 1 | . . 1 Scanalyzers . | . . . Garrison Access . | . . . Total Hacks 15 | . 8 7 Successful 10 | . 6 4 Failed 5 | . 2 3 Catastrophic 2 | . 1 1 Database Lockouts . | . . . Manual . | . . . Terminals 14 | . 8 6 Fabricators . | . . . Repair Stations . | . . . Recycling Units 1 | . . 1 Scanalyzers . | . . . Garrison Access . | . . . Terminal Hacks 9 | . 6 3 Record 5 | . 3 2 Branch Access Points 1 | . 1 . Alert Level 1 | . . 1 Disarm Traps 1 | . 1 . Investigation Status 1 | . 1 . Fabricator Hacks . | . . . Repair Station Hacks . | . . . Recycling Unit Hacks 1 | . . 1 Recycle Component 1 | . . 1 Scanalyzer . | . . . Garrison Access Hacks . | . . . Unauthorized Hacks . | . . . Terminals . | . . . Fabricators . | . . . Repair Stations . | . . . Recycling Units . | . . . Scanalyzers . | . . . Garrison Access . | . . . Data Cores Recovered . | . . . Used . | . . . Hacking Detections 3 | . 2 1 Full Trace Events 1 | . 1 . Feedback Events . | . . . Feedback Blocked . | . . . Robot Schematics Acquired . | . . . Robots Built . | . . . Matter . | . . . Time . | . . . Total Robot Build Rating . | . . . Part Schematics Acquired . | . . . Parts Built . | . . . Matter . | . . . Time . | . . . Total Part Build Rating . | . . . Parts Repaired . | . . . Time . | . . . Parts Recycled 1 | . . 1 Recycled Matter . | . . . Retrieved Matter . | . . . Retrieved Components . | . . . Parts Scanalyzed . | . . . Part Schematics Acquired . | . . . Parts Damaged . | . . . Bothacking | -11 -10 -9 ------------ Run | Scr Mat Mat Used RIF Installer . | . . . Robots Hacked . | . . . Non-combat . | . . . Combat . | . . . Robot Hacks Applied . | . . . Relay Couplers Released . | . . . Robots Rewired . | . . . Allies Hacked . | . . . Hacks Repelled . | . . . Allies | -11 -10 -9 -------- Run | Scr Mat Mat Total Allies . | . . . Largest Group . | . . . Highest-Rated Group . | . . . Highest-Rated Ally . | . . . Total Orders . | . . . Ally Attacks . | . . . Total Damage . | . . . Kills . | . . . Allies Corrupted . | . . . Allies Melted . | . . . Intel | -11 -10 -9 ------- Run | Scr Mat Mat Robot Analysis Total . | . . . Derelict Logs Recovered . | . . . Drone Launches . | . . . Drone Recoveries . | . . . Exploration | -11 -10 -9 ------------- Run | Scr Mat Mat Turns Passed 1537 | 106 773 658 Spaces Moved 702 | 64 375 263 Core 17 | 13 3 1 Treads 207 | 51 91 65 Legs 166 | . 96 70 Wheels . | . . . Hover . | . . . Flight 312 | . 185 127 Fastest Speed 34 | 50 37 34 Average Speed 122 | 137 129 107 Slowest Speed 200 | 160 200 180 Overloaded Moves . | . . . Propulsion Burnouts . | . . . Robots Hopped 2 | . . 2 Cave-ins Triggered . | . . . Exploration Rate (%) 29 | 5 55 27 Regions Visited 2 Branch Regions . Pre-discovered Areas . | . . . Known Exits Taken . | . . . Unknown Exits Taken 2 | 1 1 . Scrap Searched . | . . . Spaces Dug . | . . . Terrain Destroyed 94 | . 29 65 Melee . | . . . Projectile . | . . . AOE 94 | . 29 65 Terrain Rammed . | . . . Walls Destroyed . | . . . Machines Disabled . | . . . Actions | -11 -10 -9 --------- Run | Scr Mat Mat Total 1167 | 79 575 513 Wait 225 | . 95 130 Move 696 | 63 374 259 Hop 2 | . . 2 Pick Up 38 | 8 14 16 Fast Attach 2 | . . 2 Attach 29 | 6 10 13 Detach 1 | . 1 . Swap 9 | . 4 5 Drop 13 | . 8 5 Fire 150 | 2 67 81 Melee . | . . . Ram . | . . . Kick 2 | . 2 . Crush . | . . . Escape Stasis . | . . . Rewire . | . . . Trap . | . . . Miscellaneous . | . . . Route ------- -11/Scrapyard -10/Materials (discovered 3 exits: *Mat x2 / *Min) -9/Materials (discovered 1 exit: [*Min]) History --------- Turn | Location | Event 43 | -11/Scrapyard | Discovered new exit (range 16) 107 | -11/Scrapyard | Entered Materials 276 | -10/Materials | Core integrity fell below 50% 301 | -10/Materials | Build established: Mutant 367 | -10/Materials | Discovered new exit (range 10) 515 | -10/Materials | Lost 3 parts (1p2w) 826 | -10/Materials | Identified exit to Mines 838 | -10/Materials | Discovered new exit (range 6) 880 | -10/Materials | Entered another Materials area 880 | -9/Materials | Evolved 2 slots: Power x1, Propulsion x1 1107 | -9/Materials | Lost 4 parts (2p1n1w) 1202 | -9/Materials | Discovered new exit (range 12) 1367 | -9/Materials | Build established: Scavenger-Mutant 1407 | -9/Materials | Core integrity fell below 50% 1531 | -9/Materials | Core integrity fell below 20% 1538 | -9/Materials | Destroyed by G-34 Mercenary with Small Laser Last Messages --------------- 01502_ K-01 Serf collects debris. 01504_ G-34 Mercenary destroyed. 01504_ Lgt. Treads destroyed. 01506_ K-01 Serf collects debris. 01506_ Lgt. Armor Plating destroyed. 01511_ K-01 Serf collects debris. 01512_ Beam Rifle destroyed. 01514_ K-01 Serf collects debris. 01516_ R-06 Scavenger collects Sml. Laser. 01518_ K-01 Serf destroyed. 01518_ Aluminum Leg destroyed. 01521_ R-06 Scavenger collects Broken Imp. Ion Engine. 01524_ R-06 Scavenger collects Heat Sink. 01524_ Lgt. Treads destroyed. 01527_ R-06 Scavenger collects Wheel. 01527_ K-01 Serf collects debris. 01528_ Ion Engine destroyed. 01531_ K-01 Serf collects debris. 01538_ Recycling unit begins recycling process. [Achievement: First Step to Greatness] Map ----- +----------------------------------------------------+ | ??????????????????????????????# < ""#??????????? | | ??????????????????????????????# |"#??????????? | | ??????????????????????????????#*%= "#??????????? | | ??????????????????????????????#=[=["""#??????????? | | ??????????????????????????????##[!%####??????????? | | ???????????????????????????????# ==#?????????????? | | ???????????????????????????????#[= #?????????????? | | ?????????????????????????? ??# #?????????????? | | ?????????????????????????# ### ##????????????? | | ?????????????????????????# T# ###+###+####?? | | ?????????????????????????# ## ? | | ?????????????????????????# ## ? | | ?????????????????????????# ## ? | | ?????????????????????????# ## #######+####?? | | ?????????????????????????# #### #????????????? | | ?????????????????????????+ #??# #????????????? | | ?????????????????????????# #??# #????????????? | | ?????????????????????????# #??# #????????????? | | ?????????????????????????# #??# #????????????? | | ?????????????????????????# #??# #????????????? | | ???????????# ########### #### #????????????? | | ?????????? #????????????? | | ?????????? % %g #????????????? | | ?????????? % %%% #????????????? | | ????????????#"T"#########g######+####????????????? | | ??????????????????????#!k@=* # [#????????????? | | ??????????????????????# % * g #????????????? | | ??????????????????????# """ # ""r #????????????? | | ??????????????????????# """ # "Y #????????????? | | ??????????????????????# """ # "" #????????????? | | ??????????????????????# # #????????????? | | ??????????????????????###############????????????? | | ?????????????????????????????????????????????????? | | ?????????????????????????????????????????????????? | | ?????????????????????????????????????????????????? | | ?????????????????????????????????????????????????? | | ?????????????????????????????????????????????????? | | ?????????????????????????????????????????????????? | | ?????????????????????????????????????????????????? | | ?????????????????????????????????????????????????? | | ?????????????????????????????????????????????????? | | ?????????????????????????????????????????????????? | | ?????????????????????????????????????????????????? | | ?????????????????????????????????????????????????? | | ?????????????????????????????????????????????????? | | ?????????????????????????????????????????????????? | | ?????????????????????????????????????????????????? | | ?????????????????????????????????????????????????? | | ?????????????????????????????????????????????????? | | ?????????????????????????????????????????????????? | +----------------------------------------------------+ Best States ------------- Heat Dissipation 35 Energy Generation 19 Energy Capacity 430 Matter Stores 300 Matter Capacity 300 Sight Range 16 Robot Scan Range 10 Terrain Scan Density 10 Additional Mass Support 6 Armor Coverage 300 Evasion (%) 63 Recoil Reduction 2 Item Schematics ----------------- None Robot Schematics ------------------ None Fabricated ------------ Nothing Alien Tech Used ----------------- None Achievements -------------- First Step to Greatness Oops Challenges ------------ None Game ------ Seed CoordinationHardenedReactor Manual? 0 Play Time 00:31:17 Cumulative 1.0 hours Start 2020.10.18 @ 08:17:33 End 2020.10.18 @ 08:50:37 Sessions 1 Manual Loads 0 Difficulty Rogue Special Mode None Game No. 3 Rogue 3 Adventurer 0 Explorer 0 Win Type - Total 0 Types 0/0/0/0/0/0/0/0/0 Lore% 1 Gallery% 4 Achievement% 4 Wizard Run 0 Options --------- ASCII 0 Keyboard 0 Movement Mouse Keybinds 0 Fullscreen 1 Font 24/Smallcaps Map View 76x50 Tactical HUD 1 Map Filters NONE Filters NONE Steam 1 RUN: 3e434f5f-464d-4a2f-8739-f2b1e65ed0f7